Cogmind - Beta 15 @@@ ROGUE MODE // 2025.07.27 @ 17:03:59 Player: winnking222 Result: Destroyed by S-43 Plague with Heavy Machine Gun Performance ------------- Evolutions (7) 3500 Regions Visited (27) 5400 Robots Destroyed (334) 1670 Value Destroyed (14224) 14224 Prototype IDs (78) 1560 Alien Tech Used (4) 800 Bonus (5385) 5385 TOTAL SCORE: 32539 Bonus ------- High Alert Combat Kills 287 Follower Combat Kills 807 Aligned with FarCom 300 Met Imprinter 300 Destroyed Z-Imprinter 1000 Triggered Deep Caves Wall 500 Exposed GOLEM Chamber 500 Met Zhirov 300 Met Warlord at Base 500 MAIN.C Attacked Warlord 500 Warlord Defense Kills 520 Friendly Fire -129 Cogmind --------- Core Integrity 0/1300 Matter 284/300 Energy 99/100 System Corruption 7% Temperature Cool (0) Movement Core (50) Location -3/Research Parts ------- > --- POWER (2) -------- (None) > --- PROPULSION (3) --- (None) > --- UTILITY (14) ----- (None) > --- WEAPON (3) ------- (None) > --- INVENTORY (5) ---- Reinforced Fission Core Advanced Myomer Leg Advanced Point Defense System Peak State ------------ > --- POWER ------------ Assembled Flux Generator > --- PROPULSION ------- Advanced Myomer Leg Assembled Alloy Leg Assembled Alloy Leg > --- UTILITY ---------- Assembled Nanovents Assembled Nanovents Assembled Nanovents Assembled Nanovents Assembled Biocell Array Assembled Biocell Array Assembled Suspension Frame Assembled Combat Suite Advanced Target Analyzer Reaction Control System Experimental Propulsion Shielding Assembled Alloy Armor Assembled Alloy Armor Advanced Point Defense System > --- WEAPON ----------- Assembled Focal Cannon Assembled Focal Cannon Assembled Focal Cannon > --- INVENTORY -------- Reinforced Fission Core Advanced Myomer Leg Dimensional Node Initializer Transdimensional Reconstructor Vortex Shotgun [Rating: 188] Favorites ----------- Power Reinforced Fission Core Engine Cooled Ion Engine Power Core Reinforced Fission Core Reactor Fusion Reactor Propulsion Assembled Alloy Leg Treads Light Treads Leg Assembled Alloy Leg Flight Unit Improved Flight Unit Utility Assembled Nanovents Device Assembled Nanovents Storage Assembled Biocell Array Processor Experimental Targeting Computer Protection Assembled Alloy Armor Weapon Assembled Focal Cannon Energy Gun Zionite Phaser-S Energy Cannon Assembled Focal Cannon Ballistic Gun Enhanced Autogun Ballistic Cannon Heavy Gauss Cannon Launcher Heavy Rocket Launcher Special Weapon Field Lobotomy Kit Piercing Weapon CR-A16's Pointy Stick Build | -11 -10 -10 -9 -9 -9 -8 -8 -7 -7 -7 -7 -7 -6 -6 -5 -5 -5 -5 -5 -5 -4 -4 -4 -4 -4 -3 -3 ------- Run | Yrd Mat Min Mat Min Exi Min Mat Fac Low Low Zio Dee Pro Fac Fac Was Fac Upp Upp War Pro Fac Upp Upp Zhi Pro Res Slots Evolved 14 | . . . 2 . . . 2 2 . . . . . 2 2 . . . . . . 2 . . . . 2 Power 1 | . . . . . . . . . . . . . . . . . . . . . . 1 . . . . . Propulsion 1 | . . . 1 . . . . . . . . . . . . . . . . . . . . . . . . Utility 11 | . . . . . . . 2 2 . . . . . 2 2 . . . . . . 1 . . . . 2 Weapon 1 | . . . 1 . . . . . . . . . . . . . . . . . . . . . . . . Parts Attached 172 | 7 11 5 23 5 13 1 9 12 4 4 3 25 2 16 5 1 8 . 1 3 2 2 . 2 2 1 5 Power 14 | 1 1 1 2 . 1 . 1 . . . . 2 . . 1 . 2 . . . 2 . . . . . . Engine 8 | 1 1 1 2 . 1 . . . . . . 1 . . 1 . . . . . . . . . . . . Core 4 | . . . . . . . 1 . . . . . . . . . 1 . . . 2 . . . . . . Reactor 2 | . . . . . . . . . . . . 1 . . . . 1 . . . . . . . . . . Propulsion 37 | 2 2 . 12 . 4 1 1 1 1 1 . 3 . . . . 4 . 1 . . 2 . 1 1 . . Treads 12 | 2 . . 8 . 2 . . . . . . . . . . . . . . . . . . . . . . Leg 24 | . 2 . 3 . 2 1 1 1 1 1 . 3 . . . . 4 . 1 . . 2 . 1 1 . . Wheel . | . . . . . . . . . . . . . . . . . . . . . . . . . . . . Hover . | . . . . . . . . . . . . . . . . . . . . . . . . . . . . Flight 1 | . . . 1 . . . . . . . . . . . . . . . . . . . . . . . . Utility 70 | 2 7 2 2 1 5 . 4 6 1 1 2 14 1 11 3 1 1 . . . . . . 1 1 1 3 Device 26 | 1 1 1 . . 3 . 1 2 1 . 2 5 1 2 1 . 1 . . . . . . 1 . 1 2 Storage 5 | 1 2 . . . . . . . . . . 1 . 1 . . . . . . . . . . . . . Processor 12 | . . . . . 1 . 1 1 . . . 1 . 6 . 1 . . . . . . . . . . 1 Hackware . | . . . . . . . . . . . . . . . . . . . . . . . . . . . . Protection 27 | . 4 1 2 1 1 . 2 3 . 1 . 7 . 2 2 . . . . . . . . . 1 . . Artifact . | . . . . . . . . . . . . . . . . . . . . . . . . . . . . Weapon 51 | 2 1 2 7 4 3 . 3 5 2 2 1 6 1 5 1 . 1 . . 3 . . . . . . 2 Energy Gun 12 | 1 1 1 1 . . . 1 2 . . . 2 1 . 1 . . . . 1 . . . . . . . Energy Cannon 6 | . . 1 . . . . . . . . . 3 . . . . . . . 1 . . . . . . 1 Ballistic Gun 24 | 1 . . 6 4 2 . 1 3 . 2 . 1 . 3 . . 1 . . . . . . . . . . Ballistic Cannon 1 | . . . . . . . . . . . . . . . . . . . . . . . . . . . 1 Launcher 6 | . . . . . 1 . 1 . 1 . . . . 2 . . . . . 1 . . . . . . . Special Weapon 1 | . . . . . . . . . 1 . . . . . . . . . . . . . . . . . . Impact Weapon . | . . . . . . . . . . . . . . . . . . . . . . . . . . . . Slashing Weapon . | . . . . . . . . . . . . . . . . . . . . . . . . . . . . Piercing Weapon 1 | . . . . . . . . . . . 1 . . . . . . . . . . . . . . . . Special Melee Weapon . | . . . . . . . . . . . . . . . . . . . . . . . . . . . . Unidentified Prototypes 38 | . . . 5 . 5 . 3 3 1 . 1 7 . 1 2 . 2 . 1 2 . . . . 3 . 2 Parts Lost 58 | . 3 1 3 1 . . 1 1 . 2 . . 1 11 . 7 1 1 1 1 3 4 . 4 . . 12 Power 5 | . 1 1 . . . . . . . . . . . 1 . . . . . . 1 . . . . . 1 Propulsion 6 | . . . 2 1 . . . . . . . . . . . 2 . . 1 . . . . . . . . Utility 33 | . 1 . . . . . . 1 . 1 . . 1 6 . 4 1 1 . 1 2 4 . 3 . . 7 Weapon 14 | . 1 . 1 . . . 1 . . 1 . . . 4 . 1 . . . . . . . 1 . . 4 Highest Loss Streak 7 | . 3 1 1 1 . . 1 1 . 1 . . 1 4 . 7 1 1 1 1 3 3 . 3 . . 7 To Critical Strikes 1 | . . . . . . . . . . . . . . . . 1 . . . . . . . . . . . Average Backups 12 | 4 12 19 19 18 9 19 19 19 19 18 19 19 18 18 18 13 4 4 4 4 4 5 5 4 5 5 4 Power 1 | . 1 1 1 1 . 1 1 1 1 1 2 1 1 1 2 1 . 1 1 1 . 1 1 1 1 1 1 Propulsion 2 | 2 6 7 4 3 1 2 2 3 2 3 2 2 1 4 5 4 1 2 1 1 1 1 1 . . . . Utility 4 | . 4 9 9 8 3 9 6 5 6 6 6 8 9 7 5 4 1 1 1 1 1 1 1 1 1 1 . Weapon 3 | . . 2 3 4 3 4 5 5 7 5 5 5 5 4 5 3 . . . 1 1 2 2 2 1 1 . Tool/Special . | . . . . . . . . . . . . . . . . . . . . . . . . . . . . Unused Backups 51 | . 3 1 8 1 7 . 1 1 . 2 2 4 . 4 3 8 2 . 1 . . 1 . . 1 . 1 Power 11 | . . . 1 . 3 . . 1 . . . 1 . . 3 2 . . . . . . . . . . . Propulsion 12 | . 2 . 1 . . . 1 . . . 1 1 . 2 . 2 . . . . . 1 . . . . 1 Utility 20 | . 1 1 4 . 4 . . . . . 1 2 . 2 . 1 2 . 1 . . . . . 1 . . Weapon 7 | . . . 2 1 . . . . . 2 . . . . . 2 . . . . . . . . . . . Tool/Special 1 | . . . . . . . . . . . . . . . . 1 . . . . . . . . . . . Average Slot Usage (%) 94 | . 99 99 99 99 98 100 98 97 91 91 99 99 99 98 98 69 83 93 93 93 90 89 88 85 91 95 75 Engine 3 | . 13 13 11 11 11 11 3 . . . . 1 7 4 3 2 . . . . . . . . . . . Core 1 | . . . . . . . 5 7 7 7 7 3 . 1 1 . . . . . 3 . . . . . . Reactor 1 | . . . . . . . . . . . . 2 . . . . 2 5 5 5 1 4 5 4 5 5 3 Treads 5 | . 9 . 25 32 32 22 . . . . . . . . . . . . . . . . . . . . . Leg 16 | . 18 28 7 . . 10 26 23 23 23 23 23 22 20 17 10 15 17 16 16 15 15 14 13 15 15 11 Device 19 | . 5 . . . . . 9 17 15 15 22 19 14 17 16 10 28 34 34 32 32 34 35 34 35 35 28 Storage 7 | . 14 14 11 11 4 11 9 7 7 7 7 7 7 6 5 3 4 5 5 11 10 10 10 10 10 10 6 Processor 4 | . . . . . 6 . 7 10 7 7 7 8 7 17 23 26 9 2 . . . . . . . . 3 Protection 9 | . 8 13 11 11 10 11 10 6 7 6 7 8 15 9 9 3 4 7 10 11 10 9 8 9 11 15 10 Energy Gun 1 | . 19 16 3 . . . . . . . . . 2 4 . 2 . . . . . . . . . . . Energy Cannon 6 | . . 11 . . . . . . . . . 5 . . . . 14 17 16 15 14 15 14 12 15 15 10 Ballistic Gun 12 | . 8 . 27 33 32 33 26 22 22 22 18 11 20 14 16 7 . . . . . . . . . . . Peak Build Rating 188 | 7 12 14 22 20 35 50 66 86 78 78 79 82 86 102 97 97 144 147 155 156 156 177 177 178 172 172 188 Average Rating 93 | 5 9 13 18 19 22 39 57 80 75 72 72 76 83 93 93 64 125 145 146 155 149 176 174 168 167 172 151 On Entrance 89 | . 7 12 14 20 20 35 50 66 73 78 67 73 81 83 88 97 17 144 147 155 156 155 177 177 165 172 172 Naked Turns 97 | . . . . . . . . . . . . . . . . . . . . . . . . . . . 97 Heaviest Build 109 | 14 52 54 62 60 63 63 81 97 97 95 85 89 78 87 93 76 71 74 75 75 84 104 104 104 105 105 109 Greatest Support 110 | 40 40 26 60 60 60 75 77 89 75 75 87 92 84 78 78 84 103 103 103 103 103 105 105 105 110 110 110 Greatest Overweight (x) 2 | 1 1 2 2 . 1 1 1 1 1 1 1 1 . 1 1 1 . . 1 . 1 . 1 1 1 . . Average Overweight (x) . | . . 1 . . . . . . 1 . . . . . 1 . . . . . . . . . . . . Largest Inventory Capacity 20 | 8 20 20 20 20 20 20 20 20 20 20 20 20 20 20 20 20 5 5 5 5 5 5 5 5 5 5 5 Average Capacity 13 | 7 14 20 20 20 10 20 20 20 20 20 20 20 20 20 20 14 5 5 5 5 5 5 5 5 5 5 5 Most Carried 20 | 8 20 20 20 20 20 20 20 20 20 20 20 20 20 20 20 20 5 5 5 5 5 5 5 5 5 5 5 Average Carried 12 | 4 12 19 19 19 10 19 19 19 19 18 19 19 19 19 19 14 4 4 4 4 4 5 5 4 4 5 4 Final Capacity 20 | 8 20 20 20 20 20 20 20 20 20 20 20 20 20 20 20 5 5 5 5 5 5 5 5 5 5 5 5 Final Carried 20 | 5 20 20 20 20 20 20 19 20 20 18 20 20 19 20 20 5 5 5 5 5 5 5 5 5 5 5 3 Class Distribution -------------------- 35% | Golem 28% | Scavenger-Gunner 19% | Tank 7% | Mutant 4% | Scavenger-Tank Dominant Class ---------------- Mutant | -10/Materials Mutant | -10/Mines Tank | -9/Materials Tank | -9/Mines Tank | -9/Exiles Tank | -8/Mines Scavenger-Gunner | -8/Materials Scavenger-Gunner | -7/Factory Scavenger-Gunner | -7/Lower Caves Scavenger-Gunner | -7/Lower Caves Scavenger-Gunner | -7/Zion Scavenger-Gunner | -7/Deep Caves Scavenger-Tank | -6/Proximity Caves Scavenger-Gunner | -6/Factory Scavenger-Tank | -5/Factory Mutant | -5/Waste Golem | -5/Factory Golem | -5/Upper Caves Golem | -5/Upper Caves Golem | -5/Warlord Golem | -4/Proximity Caves Golem | -4/Factory Golem | -4/Upper Caves Golem | -4/Upper Caves Tank | -4/Zhirov Tank | -3/Proximity Caves Tank | -3/Research Resources | -11 -10 -10 -9 -9 -9 -8 -8 -7 -7 -7 -7 -7 -6 -6 -5 -5 -5 -5 -5 -5 -4 -4 -4 -4 -4 -3 -3 ----------- Run | Yrd Mat Min Mat Min Exi Min Mat Fac Low Low Zio Dee Pro Fac Fac Was Fac Upp Upp War Pro Fac Upp Upp Zhi Pro Res Matter Collected 10963 | 309 370 75 970 597 1058 271 1138 1458 739 554 90 762 157 1541 . 250 144 34 98 39 88 38 . 41 . 72 70 Remotely . | . . . . . . . . . . . . . . . . . . . . . . . . . . . . Salvage Created 16313 | 88 387 189 1565 347 403 315 1234 1107 598 824 . 460 228 2138 59 . 1113 540 568 255 75 1978 . 668 . 802 372 Parts 855 | 15 28 13 87 8 19 28 72 67 28 45 . 23 15 97 6 . 59 13 23 11 2 112 . 28 . 25 31 Haulers Intercepted 7 | . . . 3 . . . 3 . 1 . . . . . . . . . . . . . . . . . . Recyclers Shooed 7 | . 1 . 2 . . . 3 . . . . . . 1 . . . . . . . . . . . . . Parts Field Recycled . | . . . . . . . . . . . . . . . . . . . . . . . . . . . . Retrieved Matter . | . . . . . . . . . . . . . . . . . . . . . . . . . . . . Parts Self-Destructed 219 | . . . . . . . . . 34 63 . . 19 . . . . 13 30 . 2 . . 18 . 40 . Prevented 13 | . . . . . . . . . . . . . . . . . . . . . . . . 6 . 7 . Kills | -11 -10 -10 -9 -9 -9 -8 -8 -7 -7 -7 -7 -7 -6 -6 -5 -5 -5 -5 -5 -5 -4 -4 -4 -4 -4 -3 -3 ------- Run | Yrd Mat Min Mat Min Exi Min Mat Fac Low Low Zio Dee Pro Fac Fac Was Fac Upp Upp War Pro Fac Upp Upp Zhi Pro Res Combat Hostiles Destroyed 302 | . 11 6 28 18 6 11 20 19 16 16 . 11 5 30 1 . 20 8 11 6 2 31 . 10 . 11 5 Melee 2 | . . . . . . . . . . . . . . . . . 2 . . . . . . . . . . Guns 180 | . 11 4 27 18 5 11 20 19 12 16 . 3 5 27 1 . . . . . . . . . . . 1 Cannons 101 | . . 2 . . . . . . . . . . . . . . 18 8 11 5 2 30 . 10 . 11 4 AOE 17 | . . . 1 . 1 . . . 4 . . 7 . 3 . . . . . . . 1 . . . . . Classes Destroyed 27 | 1 3 1 5 . 1 . 3 2 . 2 . 2 2 3 . . . . . 1 . . . 1 . . . Worker 5 | . . . 2 1 . . . . . . . . . 1 . . . . . . . 1 . . . . . Builder 8 | . . . 1 . . . . . . . . . . 1 . . . . . . . 4 . . . . 2 Tunneler 7 | 5 1 1 . . . . . . . . . . . . . . . . . . . . . . . . . Hauler 7 | . . . 3 . . . 3 . 1 . . . . . . . . . . . . . . . . . . Recycler 8 | . . . 3 . . . 2 . . . . . . 3 . . . . . . . . . . . . . Mechanic 1 | . . . . . . . . . . . . . . 1 . . . . . . . . . . . . . Operator 6 | . . . . . . . 1 . . . . . . . . . 1 . . . . 2 . . . . 2 Drone 2 | . . . . . . . . . . . . . 2 . . . . . . . . . . . . . . Turret 1 | . . . . . 1 . . . . . . . . . . . . . . . . . . . . . . Watcher 15 | . 2 . 4 . . . 4 . . . . . . 3 . . . . . . . 2 . . . . . Swarmer 57 | . 6 1 4 . . 8 7 3 6 3 . . . . . . 4 . 4 . . 9 . . . . 2 Saboteur 2 | . . . . . . . . . . . . . . . . . . . . 2 . . . . . . . Grunt 97 | . 5 4 18 2 . 3 6 8 8 6 . . . 7 . . 2 7 3 3 . 5 . 4 . 6 . Brawler 7 | . . . . . . . . 1 . 3 . . . . . . . . 2 . . . . . . 1 . Duelist 6 | . . . . . . . 1 . . 1 . . . . . . 1 . . . . 2 . 1 . . . Protector 1 | . . . . . . . . . . 1 . . . . . . . . . . . . . . . . . Sentry 35 | . . . 6 . . . 3 5 . 1 . . 1 5 . . 3 1 1 . 1 4 . 2 . 1 1 Specialist 8 | . . . . . . . . . . . . . . 6 . . . . . . . 2 . . . . . Hunter 17 | . . . . . . . 3 . 2 . . . . 5 1 . 2 . . . . 4 . . . . . Programmer 26 | . . . . . . . . 2 . . . . 1 6 . . 8 . . 1 . 4 . . . 3 1 Heavy 3 | . . . . . . . . . . . . . . 1 . . . . . . . 1 . . . . 1 Behemoth 3 | . . . . . . . . . . . . . 1 . . . . . 1 . 1 . . . . . . Z-Technician 1 | . . . . . . . . . . . . 1 . . . . . . . . . . . . . . . Z-Light 7 | . . . . . . . . . . . . 7 . . . . . . . . . . . . . . . Thief 1 | . . . . . . . . . . 1 . . . . . . . . . . . . . . . . . Master Thief 2 | . . . . . . . . . . . . . . . . . . . . . . . . 2 . . . Assembled 25 | . . 1 . 16 5 . . . . . . 3 . . . . . . . . . . . . . . . Golem 1 | . . . . . . . . . . . . 1 . . . . . . . . . . . . . . . Mutant 1 | . . . . . . . . . . . . . . . . . . . . . . . . 1 . . . Best Kill Streak 8 | 4 4 3 7 8 4 4 7 4 5 5 . 5 2 8 1 . 4 4 4 3 1 6 . 6 . 3 2 Combat Bots Only 8 | . 3 2 6 8 4 4 5 4 5 5 . 5 2 6 1 . 4 4 4 3 1 5 . 6 . 3 2 Max Kills in Single Turn 3 | 1 2 2 2 1 1 2 2 2 2 1 . 3 1 2 1 . 1 1 1 1 1 2 . 2 . 1 2 Gunslinging 1 | . . . . . . . . . 1 . . . . . . . . . . . . . . . . . . Exploded 3 | . . . 1 . 1 . . . 2 . . 3 . 1 . . . . . . . 1 . . . . . Melee 1 | . . . . . . . . . . . . . . . . . 1 . . . . . . . . . . Uniques/NPCs Destroyed 2 | . . . . . 1 . . . . . . 1 . . . . . . . . . . . . . . . 8R-AWN (-9/Exiles) Z-Imprinter (-7/Deep Caves) Combat | -11 -10 -10 -9 -9 -9 -8 -8 -7 -7 -7 -7 -7 -6 -6 -5 -5 -5 -5 -5 -5 -4 -4 -4 -4 -4 -3 -3 -------- Run | Yrd Mat Min Mat Min Exi Min Mat Fac Low Low Zio Dee Pro Fac Fac Was Fac Upp Upp War Pro Fac Upp Upp Zhi Pro Res Hostile Shots Fired 1864 | . 69 12 90 42 36 29 81 155 67 29 . 42 45 240 9 6 88 30 61 24 70 221 . 117 . 52 249 Missed 700 | . 12 4 29 8 10 13 29 54 20 9 . 15 16 79 5 . 37 16 19 11 30 106 . 41 . 23 114 Hits 1164 | . 57 8 61 34 26 16 52 101 47 20 . 27 29 161 4 6 51 14 42 13 40 115 . 76 . 29 135 Melee 39 | . . . . 12 . . 1 . . 5 . . . . . 6 . . 1 . . 5 . 9 . . . Projectile 1125 | . 57 8 61 22 26 16 51 101 47 15 . 27 29 161 4 . 51 14 41 13 40 110 . 67 . 29 135 AOE 3 | . . . . 3 . . . . . . . . . . . . . . . . . . . . . . . Critical Strikes 46 | . 1 . . 2 . . 2 . 2 1 . . 3 7 . 4 3 . 1 2 1 . . 7 . 3 7 Actively Blocked 1 | . . . . . . . . . . . . . . . . . . . . . . . . . . 1 . Part Disruptions 3 | . . . . . . . . . . . . . . 2 . . . . . . . . . 1 . . . Actively Blocked 1 | . . . . . . . . . . . . . . 1 . . . . . . . . . . . . . Damage Taken 19554 | . 571 98 902 719 367 211 707 1458 603 361 . 834 534 2151 70 314 815 233 669 241 1017 1639 . 1269 . 517 3254 Core 3184 | . 42 24 55 98 46 9 77 224 47 . . 129 81 240 . 107 58 30 27 42 153 212 . 186 . 69 1228 Absorbed by Shields . | . . . . . . . . . . . . . . . . . . . . . . . . . . . . Redirected to Shielding 457 | . . . . . . . . . . . . 38 174 70 . . . . . . . . . . . 61 114 Ignored by Resistances 1670 | . . . . . . . . . . . . 64 . . . . 169 44 132 50 166 330 . 271 . 107 337 Regen/Repaired (Parts) 1505 | . . . . . . . 70 83 . . 1230 . . 82 . . . . . 40 . . . . . . . Core Remaining (%) 65 | 100 . 73 . . . 48 86 . . . . . 31 71 . . . . . . 58 . . . . 59 . Volleys Fired 1170 | 13 46 13 83 46 63 15 91 79 39 41 . 54 15 137 3 . 36 18 171 6 22 94 . 24 . 24 37 Largest 3 | 2 2 2 3 3 3 3 3 3 3 3 . 3 3 3 3 . 3 3 3 3 3 3 . 3 . 3 3 Hottest 201 | 60 80 125 133 69 69 76 76 85 89 83 . 201 118 123 90 . 75 75 75 75 75 75 . 75 . 75 110 Shots Fired 2871 | 26 89 25 228 138 158 45 269 192 115 116 . 114 45 318 9 . 88 38 365 18 41 227 . 65 1 69 72 Gun 1794 | 26 89 14 226 138 147 45 269 192 110 116 . 50 45 311 9 . . . . . . . . . . . 7 Cannon 1041 | . . 11 2 . . . . . . . . 51 . . . . 88 38 365 18 41 227 . 65 1 69 65 Launcher 35 | . . . . . 11 . . . 4 . . 13 . 7 . . . . . . . . . . . . . Special 1 | . . . . . . . . . 1 . . . . . . . . . . . . . . . . . . Kinetic 1577 | 13 35 . 202 138 147 45 269 192 110 116 . 50 37 210 9 . . . . . . . . . . . 4 Thermal 1067 | 13 54 25 25 . . . . . . . . . . . . . 88 38 365 18 28 227 . 65 1 69 51 Explosive 24 | . . . . . . . . . 4 . . 13 . 7 . . . . . . . . . . . . . Electromagnetic 73 | . . . 1 . 11 . . . . . . 51 . . . . . . . . . . . . . . 10 Entropic 20 | . . . . . . . . . . . . . . . . . . . . . 13 . . . . . 7 Phasic 109 | . . . . . . . . . . . . . 8 101 . . . . . . . . . . . . . Robot Hit Streak 37 | 10 6 5 9 9 13 5 11 16 17 10 . 9 20 23 6 . 29 10 9 10 11 37 . 20 5 14 6 Robot Miss Streak 8 | 2 6 2 8 6 6 3 6 5 5 3 . 4 2 3 1 . 2 1 2 4 2 3 . 3 . 2 4 Penetration Max 1 | . . . . . . 1 1 1 . 1 . . . 1 . . . . . . . . . . . . . Secondary Targets 19 | . 1 . 2 . . 2 3 1 4 1 . . . 5 . . . . . . . . . . . . . Max Gunslinging Chain 1 | . 1 . 1 . . 1 1 1 1 1 . . . 1 . . . . . . . . . . . . . Shots Hit Robots 1452 | 20 44 15 131 72 77 23 146 90 78 77 . 44 35 202 6 . 59 24 34 8 30 110 . 45 1 44 37 Core Hits 652 | 5 22 8 64 35 28 14 55 44 35 38 . 36 12 74 3 . 26 14 18 6 5 54 . 16 . 20 20 Critical Kills 25 | . . . . 2 . 2 2 8 2 6 . . . 3 . . . . . . . . . . . . . Critical Parts Destroyed 29 | . . . 1 . . 2 3 9 3 6 . . . 4 . . . . . . . . . . . . 1 Critical Strikes 66 | . . . 3 2 2 4 5 18 5 13 . 1 . 9 . . . . . . 2 . . . . . 2 Burn 2 | . . . 2 . . . . . . . . . . . . . . . . . . . . . . . . Destroy 57 | . . . 1 2 2 4 5 18 5 13 . . . 7 . . . . . . . . . . . . . Corrupt 2 | . . . . . . . . . . . . 1 . . . . . . . . . . . . . . 1 Detonate 1 | . . . . . . . . . . . . . . . . . . . . . . . . . . . 1 Sunder 2 | . . . . . . . . . . . . . . . . . . . . . 2 . . . . . . Intensify 2 | . . . . . . . . . . . . . . 2 . . . . . . . . . . . . . Melee Attacks 2 | . . . . . . . . . . . 2 . . . . . . . . . . . . . . . . Impact . | . . . . . . . . . . . . . . . . . . . . . . . . . . . . Slashing . | . . . . . . . . . . . . . . . . . . . . . . . . . . . . Piercing 2 | . . . . . . . . . . . 2 . . . . . . . . . . . . . . . . Sneak Attacks . | . . . . . . . . . . . . . . . . . . . . . . . . . . . . Combat Hostiles . | . . . . . . . . . . . . . . . . . . . . . . . . . . . . Follow-up Attacks . | . . . . . . . . . . . . . . . . . . . . . . . . . . . . Damage Inflicted 41846 | 235 510 280 2236 1121 1348 405 2140 1669 1797 1569 . 2012 789 5948 98 . 3024 1044 1525 593 1688 5607 . 2074 . 2331 1803 Guns 18771 | 235 510 133 2046 1110 1144 405 2140 1669 1235 1569 . 492 789 5004 98 . . . . . . . . . . . 192 Cannons 19690 | . . 143 . . . . . . . . . 405 . . . . 2998 1044 1494 593 1688 5400 . 2074 . 2331 1520 Explosions 3285 | . . . 183 . 204 . . . 562 . . 1115 . 944 . . . . . . . 200 . . . . 77 Melee . | . . . . . . . . . . . . . . . . . . . . . . . . . . . . Ramming 100 | . . 4 7 11 . . . . . . . . . . . . 26 . 31 . . 7 . . . . 14 Kinetic 16143 | 134 249 . 1809 1110 1144 405 2140 1669 1235 1569 . 492 558 3420 98 . . . . . . . . . . . 111 Thermal 19530 | 101 261 276 302 . . . . . . . . . . . . . 2998 1044 1494 593 1077 5600 . 2074 . 2331 1379 Explosive 2720 | . . . 99 . . . . . 562 . . 1115 . 944 . . . . . . . . . . . . . Electromagnetic 735 | . . . 19 . 204 . . . . . . 405 . . . . . . . . . . . . . . 107 Impact . | . . . . . . . . . . . . . . . . . . . . . . . . . . . . Slashing . | . . . . . . . . . . . . . . . . . . . . . . . . . . . . Piercing . | . . . . . . . . . . . . . . . . . . . . . . . . . . . . Entropic 803 | . . . . . . . . . . . . . . . . . . . . . 611 . . . . . 192 Phasic 1815 | . . . . . . . . . . . . . 231 1584 . . . . . . . . . . . . . Highest Corruption 7 | . . . . . 1 1 . 3 . . . . . 2 . . 2 2 2 2 6 . . 1 1 4 7 Average Corruption 2 | . . . . . 1 1 . 2 . . . . . 1 . . 1 2 2 1 4 . . 1 1 2 2 Corruption Purged 3 | . . . . . . . . 3 . . . . . . . . . . . . . . . . . . . Corruption Blocked . | . . . . . . . . . . . . . . . . . . . . . . . . . . . . Effects 179 | . . . . . 1 7 . 7 . . . . . 16 . . 9 15 49 2 39 . . 10 3 14 7 Message Errors 45 | . . . . . . . . 2 . . . . . 5 . . 3 3 14 . 12 . . 3 . 3 . Matter Fused 51 | . . . . . 1 4 . 2 . . . . . 4 . . 2 2 15 1 11 . . 3 . 4 2 Heat Flow Errors 20 | . . . . . . . . . . . . . . 3 . . 1 2 8 . . . . 2 . 1 3 Energy Discharges 21 | . . . . . . 1 . . . . . . . 4 . . . 3 1 1 6 . . 1 2 2 . Parts Rejected 1 | . . . . . . . . . . . . . . . . . . . . . 1 . . . . . . Parts Fused 1 | . . . . . . . . . . . . . . . . . . . . . 1 . . . . . . Data Loss (minor) 12 | . . . . . . 1 . . . . . . . . . . 3 2 2 . 3 . . . . 1 . Data Loss (major) 8 | . . . . . . 1 . 1 . . . . . . . . . 1 2 . 2 . . 1 . . . Misfires 9 | . . . . . . . . . . . . . . . . . . 1 5 . 2 . . . 1 . . Alerts 3 | . . . . . . . . . . . . . . . . . . 1 1 . 1 . . . . . . Weapon Failures 8 | . . . . . . . . 2 . . . . . . . . . . 1 . . . . . . 3 2 Overload Shots . | . . . . . . . . . . . . . . . . . . . . . . . . . . . . Overflow Damage 1011 | . . . 94 . . . . . . . . . . . . . 287 1 28 16 13 223 . 150 . 139 60 Projectiles 869 | . . . . . . . . . . . . . . . . . 287 1 28 16 13 175 . 150 . 139 60 Explosions 142 | . . . 94 . . . . . . . . . . . . . . . . . . 48 . . . . . Melee . | . . . . . . . . . . . . . . . . . . . . . . . . . . . . Knockbacks 1 | . . . . . . . . . . . . . . . . . . . . . . . . . . . 1 Impact . | . . . . . . . . . . . . . . . . . . . . . . . . . . . . Kinetic 1 | . . . . . . . . . . . . . . . . . . . . . . . . . . . 1 Secondary . | . . . . . . . . . . . . . . . . . . . . . . . . . . . . Self-Inflicted Damage 160 | . . . 155 . . . . . . . . . . . . . . . . . . . . . . . 5 Shots 2 | . . . 2 . . . . . . . . . . . . . . . . . . . . . . . . Rammed 6 | . . . 2 1 . . . . . . . . . . . . . . . . . . . . . . 3 Targets Rammed 23 | . 1 1 2 1 . . . 1 . . . . . . . . 4 . 6 . . 2 . . . . 5 Kicked 17 | . 1 1 . . . . . 1 . . . . . . . . 4 . 6 . . 2 . . . . 2 Crushed . | . . . . . . . . . . . . . . . . . . . . . . . . . . . . Highest Temperature 501 | . 138 231 343 163 44 87 501 291 400 248 . 162 350 337 . . 340 154 203 6 . . . 92 . 138 206 Average Temperature 72 | . 44 78 71 58 20 32 102 94 124 68 . 45 103 51 . . 171 73 89 6 . . . 59 . 81 82 Received Heat Transfer 3470 | . 180 48 318 142 . 81 180 201 135 105 . 183 394 255 . . 54 108 228 75 72 75 . 417 . 108 111 Effects 17 | . . . 5 . . . 5 4 . . . . . 3 . . . . . . . . . . . . . Shutdowns 1 | . . . . . . . 1 . . . . . . . . . . . . . . . . . . . . Energy Bleed 2 | . . . 1 . . . 1 . . . . . . . . . . . . . . . . . . . . Interference 10 | . . . 4 . . . . 4 . . . . . 2 . . . . . . . . . . . . . Matter Decay 1 | . . . . . . . 1 . . . . . . . . . . . . . . . . . . . . Short Circuit 1 | . . . . . . . . . . . . . . 1 . . . . . . . . . . . . . Damage (major) 2 | . . . . . . . 2 . . . . . . . . . . . . . . . . . . . . Siege Activations . | . . . . . . . . . . . . . . . . . . . . . . . . . . . . Martial Activations . | . . . . . . . . . . . . . . . . . . . . . . . . . . . . Shielding Activations . | . . . . . . . . . . . . . . . . . . . . . . . . . . . . Robots Disrupted . | . . . . . . . . . . . . . . . . . . . . . . . . . . . . Combat Hostiles . | . . . . . . . . . . . . . . . . . . . . . . . . . . . . Robots Corrupted 2 | . . . . . 1 . . . . . . 1 . . . . . . . . . . . . . . . Combat Hostiles 1 | . . . . . . . . . . . . 1 . . . . . . . . . . . . . . . Parts Fried . | . . . . . . . . . . . . . . . . . . . . . . . . . . . . Impact Corruptions . | . . . . . . . . . . . . . . . . . . . . . . . . . . . . Robots Melted . | . . . . . . . . . . . . . . . . . . . . . . . . . . . . Combat Hostiles . | . . . . . . . . . . . . . . . . . . . . . . . . . . . . Parts Melted 15 | . 1 . . . . . . . . 1 . . . . . . 4 . 1 . . 2 . 2 . 3 1 Heat Transferred 12021 | 225 600 605 716 . . . . . . . . . . . . . 1475 600 850 300 575 3025 . 1150 . 1200 700 Parts Sabotaged . | . . . . . . . . . . . . . . . . . . . . . . . . . . . . Parts Stolen 6 | . . . . . . . . . . 4 . . . . . . . . . . . . . 2 . . . Parts Stripped . | . . . . . . . . . . . . . . . . . . . . . . . . . . . . Power Chain Reactions 1 | . . . 1 . . . . . . . . . . . . . . . . . . . . . . . . Alert | -11 -10 -10 -9 -9 -9 -8 -8 -7 -7 -7 -7 -7 -6 -6 -5 -5 -5 -5 -5 -5 -4 -4 -4 -4 -4 -3 -3 ------- Run | Yrd Mat Min Mat Min Exi Min Mat Fac Low Low Zio Dee Pro Fac Fac Was Fac Upp Upp War Pro Fac Upp Upp Zhi Pro Res Maximum Alert Level 2 | . . . 1 . . . 1 1 . . . . . 2 1 . 1 . . . . 2 . . . . 1 Low Security (%) 75 | 100 100 100 80 100 . 100 57 94 . . . . . 59 11 100 94 . . . . 14 . . . . 99 Level 1 16 | . . . 19 . . . 42 5 . . . . . 21 88 . 5 . . . . 43 . . . . . Level 2 8 | . . . . . . . . . . . . . . 19 . . . . . . . 42 . . . . . Level 3 . | . . . . . . . . . . . . . . . . . . . . . . . . . . . . Level 4 . | . . . . . . . . . . . . . . . . . . . . . . . . . . . . Level 5 . | . . . . . . . . . . . . . . . . . . . . . . . . . . . . High Security . | . . . . . . . . . . . . . . . . . . . . . . . . . . . . Max Security . | . . . . . . . . . . . . . . . . . . . . . . . . . . . . Peak Influence 697 | 15 132 89 316 79 . 107 285 215 . . . . . 613 296 66 286 . . . . 697 . . . . 195 Initial 296 | . . 12 . 79 . . . 98 . . . . . 150 296 66 . . . . . . . . . . 43 Average 133 | 2 44 24 118 10 . 34 187 129 . . . . . 179 234 31 60 . . . . 390 . . . . 44 Influence Increases 8909 | 25 320 289 937 70 . 253 681 643 360 618 . . 120 1170 45 . 544 180 285 135 50 1228 . 140 . 322 494 Destroy 0b10 Robot/C 5660 | . 220 260 580 40 . 220 400 380 320 500 . . 60 600 20 . 400 160 220 120 40 620 . 140 . 260 100 Destroy 0b10 Robot/NC 305 | 25 15 5 70 5 . . 50 . 5 5 . . 10 45 . . 5 . . . . 45 . . . . 20 Destroy Leader 1132 | . 54 10 144 10 . 30 114 110 20 40 . . 20 206 10 . 90 20 20 . 10 154 . . . 40 30 Allied During Kill 80 | . . 14 1 . . . . . . 43 . . . . . . . . . . . . . . . 22 . Successful Hack 82 | . . . . . . . 33 22 . . . . . 14 . . 8 . . . . 5 . . . . . Disable Machine 390 | . . . 60 15 . . 75 45 . . . . . 45 15 . 15 . . . . 105 . . . . 15 Destroy Structure 495 | . 1 . 37 . . 3 9 11 . . . . . 80 . . 26 . . . . 254 . . . . 74 Advance Influence 150 | . . . . . . . . . . . . . . 150 . . . . . . . . . . . . . Partial Spotted 105 | . . . . . . . . 30 . . . . . 30 . . . . . . . 15 . . . . 30 Lose Combat Pursuer 510 | . 30 . 45 . . . . 45 15 30 . . 30 . . . . . 45 15 . 30 . . . . 225 Influence Decreases 8714 | 25 288 321 732 275 . 253 464 651 536 485 166 . 120 563 461 191 264 460 194 185 91 561 616 191 . 257 364 Entered New Map 1469 | . . 20 . 126 . . . 119 78 7 166 . . . 311 125 . 104 . 91 41 . 248 11 . . 22 Time Decay 6529 | 25 258 291 552 149 . 253 454 522 458 418 . . 120 453 150 20 254 346 184 84 50 521 368 170 . 197 232 Lost Part 466 | . 30 10 30 . . . 10 10 . 20 . . . 110 . 46 10 10 10 10 . 40 . 10 . . 110 Lost Ally 100 | . . . . . . . . . . 40 . . . . . . . . . . . . . . . 60 . Purge Threat 150 | . . . 150 . . . . . . . . . . . . . . . . . . . . . . . . Squads Dispatched 47 | . 2 . 3 1 . . 2 5 . 1 . . . 13 1 . 4 . . . . 9 . 1 . 1 4 Investigation 4 | . . . 1 1 . . 1 . . . . . . . . . . . . . . 1 . . . . . Extermination 18 | . . . . . . . . 3 . . . . . 5 . . 4 . . . . 4 . . . . 2 Reinforcement 19 | . 2 . 1 . . . 1 1 . . . . . 8 1 . . . . . . 3 . . . . 2 Assault 5 | . . . 1 . . . . . . 1 . . . . . . . . . . . 1 . 1 . 1 . Garrison 1 | . . . . . . . . 1 . . . . . . . . . . . . . . . . . . . Intercept . | . . . . . . . . . . . . . . . . . . . . . . . . . . . . Searches Triggered . | . . . . . . . . . . . . . . . . . . . . . . . . . . . . Construction Impeded 3 | . . . . . . . 1 . . . . . . 2 . . . . . . . . . . . . . Haulers Reinforced . | . . . . . . . . . . . . . . . . . . . . . . . . . . . . Active Scanning Responses . | . . . . . . . . . . . . . . . . . . . . . . . . . . . . Cargo Convoy Interrupts 1 | . . . . . . . . . . . . . . 1 . . . . . . . . . . . . . Stealth | -11 -10 -10 -9 -9 -9 -8 -8 -7 -7 -7 -7 -7 -6 -6 -5 -5 -5 -5 -5 -5 -4 -4 -4 -4 -4 -3 -3 --------- Run | Yrd Mat Min Mat Min Exi Min Mat Fac Low Low Zio Dee Pro Fac Fac Was Fac Upp Upp War Pro Fac Upp Upp Zhi Pro Res Distress Signals 19 | . 1 1 4 1 . . 4 2 . . . . . 2 . . . . . 2 . . . . . . 2 Communications Jammed . | . . . . . . . . . . . . . . . . . . . . . . . . . . . . Distress Signals . | . . . . . . . . . . . . . . . . . . . . . . . . . . . . Times Spotted 574 | . 21 14 47 20 72 9 34 29 20 31 . 29 10 37 5 6 25 8 14 36 2 38 . 12 . 13 42 Peak Tracking Total 13 | . 3 3 6 7 11 4 5 5 5 7 . 10 4 4 5 6 5 3 7 13 1 5 . 7 . 4 13 Tactical Retreats 46 | . 2 . 3 . 22 . . 2 1 2 . 3 1 . . . . . 2 1 . 2 . . . . 5 Traps | -11 -10 -10 -9 -9 -9 -8 -8 -7 -7 -7 -7 -7 -6 -6 -5 -5 -5 -5 -5 -5 -4 -4 -4 -4 -4 -3 -3 ------- Run | Yrd Mat Min Mat Min Exi Min Mat Fac Low Low Zio Dee Pro Fac Fac Was Fac Upp Upp War Pro Fac Upp Upp Zhi Pro Res Traps Triggered 10 | . . . 2 . . . . 2 . . . . . 3 1 . 1 . . . . . . . . . 1 Indirectly . | . . . . . . . . . . . . . . . . . . . . . . . . . . . . Trap Hack Attempts . | . . . . . . . . . . . . . . . . . . . . . . . . . . . . Triggered . | . . . . . . . . . . . . . . . . . . . . . . . . . . . . Disarmed . | . . . . . . . . . . . . . . . . . . . . . . . . . . . . Reprogrammed 6 | . . . . . . . 6 . . . . . . . . . . . . . . . . . . . . Reused 3 | . . . . . 3 . . . . . . . . . . . . . . . . . . . . . . Traps Extracted . | . . . . . . . . . . . . . . . . . . . . . . . . . . . . Installed 3 | . . . . . 3 . . . . . . . . . . . . . . . . . . . . . . Triggered . | . . . . . . . . . . . . . . . . . . . . . . . . . . . . Most Traps Carried 3 | . . . . 3 3 . . . . . . . . . . . . . . . . . . . . . . Machines | -11 -10 -10 -9 -9 -9 -8 -8 -7 -7 -7 -7 -7 -6 -6 -5 -5 -5 -5 -5 -5 -4 -4 -4 -4 -4 -3 -3 ---------- Run | Yrd Mat Min Mat Min Exi Min Mat Fac Low Low Zio Dee Pro Fac Fac Was Fac Upp Upp War Pro Fac Upp Upp Zhi Pro Res Machines Disabled 39 | . . . 4 1 7 . 5 3 . . . 2 . 3 1 . 1 . . . . 7 . 2 1 1 1 Max in Single Turn 4 | . . . 1 1 2 . 1 1 . . . 1 . 1 1 . 1 . . . . 4 . 1 1 1 1 Machines Repaired . | . . . . . . . . . . . . . . . . . . . . . . . . . . . . Machines Dismantled . | . . . . . . . . . . . . . . . . . . . . . . . . . . . . Machines Sabotaged . | . . . . . . . . . . . . . . . . . . . . . . . . . . . . Overloaded Fab Kills . | . . . . . . . . . . . . . . . . . . . . . . . . . . . . Hacking | -11 -10 -10 -9 -9 -9 -8 -8 -7 -7 -7 -7 -7 -6 -6 -5 -5 -5 -5 -5 -5 -4 -4 -4 -4 -4 -3 -3 --------- Run | Yrd Mat Min Mat Min Exi Min Mat Fac Low Low Zio Dee Pro Fac Fac Was Fac Upp Upp War Pro Fac Upp Upp Zhi Pro Res Machines Accessed 52 | . 1 1 5 1 2 1 5 7 . . . . . 4 . . 4 2 . 4 1 3 . 1 8 . 2 Terminals 24 | . 1 1 4 . . 1 4 5 . . . . . 1 . . 3 1 . . 1 1 . . . . 1 Fabricators 2 | . . . . . . . . 1 . . . . . . . . 1 . . . . . . . . . . Repair Stations 4 | . . . . . . . 1 1 . . . . . 2 . . . . . . . . . . . . . Recycling Units . | . . . . . . . . . . . . . . . . . . . . . . . . . . . . Scanalyzers 2 | . . . 1 . . . . . . . . . . 1 . . . . . . . . . . . . . Garrison Access 3 | . . . . . . . . . . . . . . . . . . . . . . 2 . . . . 1 Total Hacks 127 | . 1 3 11 1 2 1 12 10 . . . . . 9 . . 5 2 . 11 1 6 . 1 47 . 4 Successful 94 | . 1 1 5 1 2 1 8 6 . . . . . 5 . . 1 2 . 11 1 1 . 1 47 . . Failed 33 | . . 2 6 . . . 4 4 . . . . . 4 . . 4 . . . . 5 . . . . 4 Catastrophic 7 | . . . 2 . . . . 1 . . . . . . . . 1 . . . . 1 . . . . 2 Database Lockouts . | . . . . . . . . . . . . . . . . . . . . . . . . . . . . Manual 10 | . . 2 2 . 1 . 1 1 . . 1 . . . . . 2 . . . . . . . . . . Terminals 44 | . 1 3 10 . . 1 9 6 . . . . . 2 . . 4 1 . . 1 3 . . . . 3 Fabricators 3 | . . . . . . . . 2 . . . . . . . . 1 . . . . . . . . . . Repair Stations 9 | . . . . . . . 3 2 . . . . . 4 . . . . . . . . . . . . . Recycling Units . | . . . . . . . . . . . . . . . . . . . . . . . . . . . . Scanalyzers 4 | . . . 1 . . . . . . . . . . 3 . . . . . . . . . . . . . Garrison Access 4 | . . . . . . . . . . . . . . . . . . . . . . 3 . . . . 1 Terminal Hacks 84 | . 1 1 4 1 2 1 6 3 . . . . . 1 . . 1 2 . 11 1 1 . 1 47 . . Record 50 | . . . . . 1 . . . . . . . . . . . . 2 . 10 1 . . 1 35 . . Part Schematic 4 | . . . . . . . . . . . . . . . . . . . . . . . . . 4 . . Robot Analysis 4 | . . . . . . . . . . . . . . . . . . . . . . . . . 4 . . Prototype ID Bank 5 | . . . . . . . . 1 . . . . . . . . . . . . . . . . 4 . . Open Door 2 | . . . . 1 . . . . . . . . . . . . . . . 1 . . . . . . . Open DSF 1 | . . . . . . . . . . . . . . . . . . . . . . 1 . . . . . Level Access Points 1 | . . . . . . . 1 . . . . . . . . . . . . . . . . . . . . Branch Access Points 3 | . . . . . . . 1 1 . . . . . . . . 1 . . . . . . . . . . Emergency Access Points 2 | . . . 1 . . . 1 . . . . . . . . . . . . . . . . . . . . Unreport Threat 1 | . . . 1 . . . . . . . . . . . . . . . . . . . . . . . . Locate Traps 4 | . 1 . 1 . . . 1 1 . . . . . . . . . . . . . . . . . . . Reprogram Traps 1 | . . . . . . . 1 . . . . . . . . . . . . . . . . . . . . Patrol Status 1 | . . 1 . . . . . . . . . . . . . . . . . . . . . . . . . Hauler Manifests 1 | . . . 1 . . . . . . . . . . . . . . . . . . . . . . . . Zone Layout 3 | . . . . . . 1 1 . . . . . . 1 . . . . . . . . . . . . . Proto ID Catalog 1 | . . . . . 1 . . . . . . . . . . . . . . . . . . . . . . Fabricator Hacks 1 | . . . . . . . . 1 . . . . . . . . . . . . . . . . . . . Network Status 1 | . . . . . . . . 1 . . . . . . . . . . . . . . . . . . . Repair Station Hacks 7 | . . . . . . . 2 2 . . . . . 3 . . . . . . . . . . . . . Scan Component 4 | . . . . . . . 1 1 . . . . . 2 . . . . . . . . . . . . . Repair 3 | . . . . . . . 1 1 . . . . . 1 . . . . . . . . . . . . . Recycling Unit Hacks . | . . . . . . . . . . . . . . . . . . . . . . . . . . . . Scanalyzer 2 | . . . 1 . . . . . . . . . . 1 . . . . . . . . . . . . . Insert Component 2 | . . . 1 . . . . . . . . . . 1 . . . . . . . . . . . . . Garrison Access Hacks . | . . . . . . . . . . . . . . . . . . . . . . . . . . . . Unauthorized Hacks . | . . . . . . . . . . . . . . . . . . . . . . . . . . . . Terminals . | . . . . . . . . . . . . . . . . . . . . . . . . . . . . Fabricators . | . . . . . . . . . . . . . . . . . . . . . . . . . . . . Repair Stations . | . . . . . . . . . . . . . . . . . . . . . . . . . . . . Recycling Units . | . . . . . . . . . . . . . . . . . . . . . . . . . . . . Scanalyzers . | . . . . . . . . . . . . . . . . . . . . . . . . . . . . Garrison Access . | . . . . . . . . . . . . . . . . . . . . . . . . . . . . Data Cores Recovered 6 | . . . 1 . . . 1 . . . . . . . . . 1 . . . . 1 . . . . 2 Used 2 | . . . . . . . . . . . . . . . . . 1 . . . . . . . . . 1 Hacking Detections 25 | . 1 1 3 . . . 5 2 . . . . . 4 . . 3 . . . 1 3 . . . . 2 Full Trace Events 6 | . . 1 2 . . . 2 . . . . . . . . . . . . . . 1 . . . . . Feedback Events . | . . . . . . . . . . . . . . . . . . . . . . . . . . . . Feedback Blocked . | . . . . . . . . . . . . . . . . . . . . . . . . . . . . Robot Schematics Acquired 4 | . . . . . . . . . . . 4 . . . . . . . . . . . . . . . . Robots Built . | . . . . . . . . . . . . . . . . . . . . . . . . . . . . Authchips . | . . . . . . . . . . . . . . . . . . . . . . . . . . . . Time . | . . . . . . . . . . . . . . . . . . . . . . . . . . . . Total Robot Build Rating . | . . . . . . . . . . . . . . . . . . . . . . . . . . . . Part Schematics Acquired 18 | . . . . . . . . . . . 14 . . . . . . . . . . . . . 4 . . Parts Built . | . . . . . . . . . . . . . . . . . . . . . . . . . . . . Authchips . | . . . . . . . . . . . . . . . . . . . . . . . . . . . . Time . | . . . . . . . . . . . . . . . . . . . . . . . . . . . . Total Part Build Rating . | . . . . . . . . . . . . . . . . . . . . . . . . . . . . Parts Repaired 3 | . . . . . . . 1 1 . . . . . 1 . . . . . . . . . . . . . Time 159 | . . . . . . . 99 16 . . . . . 44 . . . . . . . . . . . . . Parts Recycled . | . . . . . . . . . . . . . . . . . . . . . . . . . . . . Recycled Matter . | . . . . . . . . . . . . . . . . . . . . . . . . . . . . Retrieved Matter . | . . . . . . . . . . . . . . . . . . . . . . . . . . . . Retrieved Components . | . . . . . . . . . . . . . . . . . . . . . . . . . . . . Parts Scanalyzed 1 | . . . . . . . . . . . . . . 1 . . . . . . . . . . . . . Part Schematics Acquired . | . . . . . . . . . . . . . . . . . . . . . . . . . . . . Parts Damaged . | . . . . . . . . . . . . . . . . . . . . . . . . . . . . Bothacking | -11 -10 -10 -9 -9 -9 -8 -8 -7 -7 -7 -7 -7 -6 -6 -5 -5 -5 -5 -5 -5 -4 -4 -4 -4 -4 -3 -3 ------------ Run | Yrd Mat Min Mat Min Exi Min Mat Fac Low Low Zio Dee Pro Fac Fac Was Fac Upp Upp War Pro Fac Upp Upp Zhi Pro Res Used RIF Installer . | . . . . . . . . . . . . . . . . . . . . . . . . . . . . Robots Hacked . | . . . . . . . . . . . . . . . . . . . . . . . . . . . . Non-combat . | . . . . . . . . . . . . . . . . . . . . . . . . . . . . Combat . | . . . . . . . . . . . . . . . . . . . . . . . . . . . . Robot Hacks Applied . | . . . . . . . . . . . . . . . . . . . . . . . . . . . . Relay Couplers Released 3 | . . . . . . . . . . . . . . 3 . . . . . . . . . . . . . Programmers 3 | . . . . . . . . . . . . . . 3 . . . . . . . . . . . . . Fabnet Peak Effective % . | . . . . . . . . . . . . . . . . . . . . . . . . . . . . Robots Rewired 5 | . . . . . . . . . . 2 . . . . . . . . . . . . . 2 . 1 . Allies Hacked 1 | . . . . . . . . . . . . . . . . . . . . . . . . . . 1 . Hacks Repelled . | . . . . . . . . . . . . . . . . . . . . . . . . . . . . Allies | -11 -10 -10 -9 -9 -9 -8 -8 -7 -7 -7 -7 -7 -6 -6 -5 -5 -5 -5 -5 -5 -4 -4 -4 -4 -4 -3 -3 -------- Run | Yrd Mat Min Mat Min Exi Min Mat Fac Low Low Zio Dee Pro Fac Fac Was Fac Upp Upp War Pro Fac Upp Upp Zhi Pro Res Total Allies 14 | . . 2 . . . . . . 1 2 6 . . . . . . . . . . . . 2 . 1 . Largest Group 7 | . . 2 1 . . . . . 1 3 7 7 . . . . . . . . . . . 2 2 2 . Highest-Rated Group 386 | . . 41 31 . . . . . 85 133 386 386 . . . . . . . . . . . 95 95 95 . Highest-Rated Ally 96 | . . 31 31 . . . . . 85 85 96 96 . . . . . . . . . . . 48 48 48 . Total Orders 9 | . . . . . . . . . . . 4 . . 5 . . . . . . . . . . . . . STAY 2 | . . . . . . . . . . . 2 . . . . . . . . . . . . . . . . FOLLOW 2 | . . . . . . . . . . . 2 . . . . . . . . . . . . . . . . RETURN 5 | . . . . . . . . . . . . . . 5 . . . . . . . . . . . . . Ally Attacks 225 | . . 25 2 . . . . . . 43 . 144 . . . . . . . . . . . 4 . 7 . Total Damage 5633 | . . 405 44 . . . . . . 1138 . 3815 . . . . . . . . . . . 63 . 168 . Kills 41 | . . 8 2 . . . . . . 11 . 17 . . . . . . . . . . . 1 . 2 . Allies Corrupted . | . . . . . . . . . . . . . . . . . . . . . . . . . . . . Allies Melted . | . . . . . . . . . . . . . . . . . . . . . . . . . . . . Field Lobotomies 1 | . . . . . . . . . 1 . . . . . . . . . . . . . . . . . . Intel | -11 -10 -10 -9 -9 -9 -8 -8 -7 -7 -7 -7 -7 -6 -6 -5 -5 -5 -5 -5 -5 -4 -4 -4 -4 -4 -3 -3 ------- Run | Yrd Mat Min Mat Min Exi Min Mat Fac Low Low Zio Dee Pro Fac Fac Was Fac Upp Upp War Pro Fac Upp Upp Zhi Pro Res Active Infowar (turns) 3997 | 97 385 . . . . . . . . . . 570 778 2167 . . . . . . . . . . . . . Sensors 2924 | . . . . . . . . . . . . . 778 2146 . . . . . . . . . . . . . Terrain 570 | . . . . . . . . . . . . 570 . . . . . . . . . . . . . . . Seismic 482 | 97 385 . . . . . . . . . . . . . . . . . . . . . . . . . . Decoding 1969 | . . . . . . . . . . . . . . 1969 . . . . . . . . . . . . . Machine Analysis 21 | . . . . . . . . . . . . . . 21 . . . . . . . . . . . . . Robot Analysis Total 4 | . . . . . . . . . . . . . . . . . . . . . . . . . 4 . . Derelict Logs Recovered 13 | . . 1 . 1 . . . . 1 . 2 . 1 . . . . 1 2 . 2 . 1 1 . . . Drone Launches 5 | . . . . . . . . . . . . . . 5 . . . . . . . . . . . . . Drone Recoveries 5 | . . . . . . . . . . . . . . 5 . . . . . . . . . . . . . Decoded 0b10 Intel 75 | . . . . . . . . . . . . . . 75 . . . . . . . . . . . . . Items 75 | . . . . . . . . . . . . . . 75 . . . . . . . . . . . . . Exploration | -11 -10 -10 -9 -9 -9 -8 -8 -7 -7 -7 -7 -7 -6 -6 -5 -5 -5 -5 -5 -5 -4 -4 -4 -4 -4 -3 -3 ------------- Run | Yrd Mat Min Mat Min Exi Min Mat Fac Low Low Zio Dee Pro Fac Fac Was Fac Upp Upp War Pro Fac Upp Upp Zhi Pro Res Turns Passed 42715 | 195 1077 1584 2453 860 3211 997 1163 1450 1153 1548 2735 2998 784 3030 318 94 2460 1414 4696 1176 1347 2216 858 1247 225 592 834 Spaces Moved 19797 | 99 476 617 883 443 1647 519 528 809 537 648 1666 1920 588 1245 144 116 827 701 1635 741 421 692 422 347 151 360 615 Core 289 | 20 . . . . . . . . . . . . . . . 73 11 . . . . . . . . . 185 Treads 3304 | 79 193 . 679 443 1646 264 . . . . . . . . . . . . . . . . . . . . . Legs 16204 | . 283 617 204 . 1 255 528 809 537 648 1666 1920 588 1245 144 43 816 701 1635 741 421 692 422 347 151 360 430 Wheels . | . . . . . . . . . . . . . . . . . . . . . . . . . . . . Hover . | . . . . . . . . . . . . . . . . . . . . . . . . . . . . Flight . | . . . . . . . . . . . . . . . . . . . . . . . . . . . . Fastest Speed 50 | 50 160 190 160 160 120 120 120 123 190 120 120 116 113 113 203 50 50 140 140 140 140 140 140 140 140 140 50 Average Speed 152 | 140 177 245 215 160 170 181 153 136 190 189 124 126 115 162 203 74 138 140 140 140 140 140 140 148 140 140 113 Slowest Speed 260 | 160 190 260 260 160 240 240 193 193 190 190 190 190 116 210 203 190 150 140 175 140 175 140 185 185 180 140 150 Overloaded Moves . | . . . . . . . . . . . . . . . . . . . . . . . . . . . . Propulsion Burnouts . | . . . . . . . . . . . . . . . . . . . . . . . . . . . . Robots Hopped . | . . . . . . . . . . . . . . . . . . . . . . . . . . . . Potential Cave-ins 25 | . . . . . . . . 3 . . . . . . . . . . 12 . . 10 . . . . . Cave-ins Triggered 3 | . . . . . . . . 1 . . . . . . . . . . . . 1 1 . . . . . Teleports 1 | . . . . . . . . . . . . . . . . . . . . . . . . . . . 1 Exploration Rate (%) 62 | 4 73 100 79 85 84 98 50 26 71 71 87 88 66 32 7 87 21 84 99 79 67 25 66 52 62 58 24 Regions Visited 27 Branch Regions 17 Pre-discovered Areas 10 | . . . . . 1 . . . . . 3 . 1 . . . . . 1 . 1 . . . 3 . . Known Exits Taken 8 | . . . . . . . 1 1 1 . . . . 1 . . 1 1 1 . . . . . . 1 . Unknown Exits Taken 17 | 1 1 1 1 1 1 1 . . . 1 1 1 1 . . . . . . 1 1 1 1 1 1 . . Scrap Searched 28 | . . 2 . 1 . 2 . . 3 3 2 . . . . . . 3 3 . 3 . 3 . . 3 . Spaces Dug 486 | . . . . . . . . 23 . . . 26 . 36 . . 5 3 313 . . 72 . . . . 8 Terrain Destroyed 984 | . . . 41 . 1 5 2 28 37 6 . 138 1 125 . . 16 14 330 5 9 155 . 17 . 19 35 Melee . | . . . . . . . . . . . . . . . . . . . . . . . . . . . . Projectile 629 | . . . . . 1 5 2 20 3 6 . . 1 63 . . 16 14 330 5 9 96 . 17 . 19 22 AOE 347 | . . . 41 . . . . . 34 . . 138 . 62 . . . . . . . 59 . . . . 13 Terrain Rammed . | . . . . . . . . . . . . . . . . . . . . . . . . . . . . Walls Destroyed . | . . . . . . . . . . . . . . . . . . . . . . . . . . . . Machines Disabled . | . . . . . . . . . . . . . . . . . . . . . . . . . . . . Actions | -11 -10 -10 -9 -9 -9 -8 -8 -7 -7 -7 -7 -7 -6 -6 -5 -5 -5 -5 -5 -5 -4 -4 -4 -4 -4 -3 -3 --------- Run | Yrd Mat Min Mat Min Exi Min Mat Fac Low Low Zio Dee Pro Fac Fac Was Fac Upp Upp War Pro Fac Upp Upp Zhi Pro Res Total 30589 | 129 620 660 1278 516 1957 550 784 1085 644 933 2312 2430 666 2099 168 123 2076 1104 3697 872 1147 1770 687 1030 164 394 694 Wait 8782 | . 57 20 225 12 118 8 132 140 51 225 629 371 59 641 3 3 1172 376 1868 107 690 961 263 619 6 6 20 Move 19769 | 98 475 616 882 442 1646 518 527 808 536 647 1665 1919 587 1244 144 115 826 700 1634 740 420 690 421 346 150 359 614 Hop . | . . . . . . . . . . . . . . . . . . . . . . . . . . . . Pick Up 232 | 11 22 2 25 5 56 3 7 16 3 4 5 11 1 24 6 1 12 2 3 2 1 2 . 2 2 . 4 Fast Attach 62 | 1 . 1 7 . 6 . 5 6 3 1 . 17 . 6 1 . 1 . . 2 1 . . 1 3 . . Attach 69 | 6 3 . 6 1 3 3 3 5 . 3 1 2 2 13 3 1 3 . 2 . 1 . . . . . 8 Detach 4 | . . . . . . . . . . . . . . . . . . . . 1 1 . . . . . 2 Swap 132 | . 8 4 15 5 13 . 7 11 6 1 8 19 2 18 2 1 4 . . 1 2 2 . 1 . 1 1 Drop 297 | . 8 2 33 4 49 3 12 19 6 2 2 37 . 16 6 2 18 8 13 13 9 18 3 8 3 1 2 Fire 1170 | 13 46 13 83 46 63 15 91 79 39 41 . 54 15 137 3 . 36 18 171 6 22 94 . 24 . 24 37 Melee 2 | . . . . . . . . . . . 2 . . . . . . . . . . . . . . . . Ram 3 | . . . . . . . . . . . . . . . . . . . . . . . . . . . 3 Kick 17 | . 1 1 . . . . . 1 . . . . . . . . 4 . 6 . . 2 . . . . 2 Crush 3 | . . . 2 1 . . . . . . . . . . . . . . . . . . . . . . . Escape Stasis 2 | . . . . . . . . . . . . . . . . . . . . . . 1 . . . . 1 Rewire 42 | . . 1 . . . . . . . 9 . . . . . . . . . . . . . 29 . 3 . Trap 3 | . . . . . 3 . . . . . . . . . . . . . . . . . . . . . . Miscellaneous . | . . . . . . . . . . . . . . . . . . . . . . . . . . . . Route ------- -11/Scrapyard -10/Materials (discovered 3 exits: *Mat x2 / *Min) -10/Mines (discovered 3 exits: *Mat x2 / [*Sub]) -9/Materials (discovered 4 exits: *Mat x2 / *Min x2) -9/Mines (discovered 3 exits: *Mat x2 / *Exi) -9/Exiles -8/Mines (discovered 2 exits: *Mat x2) -8/Materials (discovered 3 exits: *Fac x3) -7/Factory (discovered 4 exits: *Sto x2 / *Low x2) -7/Lower Caves -7/Lower Caves -7/Zion (discovered 2 exits: [*Dee] / [*Pro]) -7/Deep Caves -6/Proximity Caves -6/Factory (discovered 5 exits: *Fac x4 / [Ext]) -5/Factory -5/Waste -5/Factory (discovered 4 exits: *Fac x2 / *Upp x2) -5/Upper Caves -5/Upper Caves (discovered 2 exits: *Fac / *War) -5/Warlord -4/Proximity Caves -4/Factory -4/Upper Caves -4/Upper Caves (discovered 2 exits: Res / *Zhi) -4/Zhirov -3/Proximity Caves -3/Research (discovered 1 exit: [*Qua]) History --------- Turn | Location | Event 8 | -11/Scrapyard | Discovered new exit (range 16) 196 | -11/Scrapyard | Entered Materials 311 | -10/Materials | Build established: Mutant 376 | -10/Materials | Discovered new exit (range 7) 519 | -10/Materials | Discovered new exit (range 14) 882 | -10/Materials | Lost 3 parts (1p1u1w) 964 | -10/Materials | Discovered new exit (range 15) 1273 | -10/Materials | Entered Mines 1274 | -10/Mines | Met a Derelict testing a Signal Generator 1283 | -10/Mines | Found Signal Generator 1328 | -10/Mines | Found a damaged Exp. Sensor Array with a note attached 1332 | -10/Mines | Found Prototype Device 1455 | -10/Mines | Excavation squad dispatched 1455 | -10/Mines | A large section of the Mines collapsed 1556 | -10/Mines | Learned Materials emergency access door positions 1705 | -10/Mines | Excavation squad dispatched 1955 | -10/Mines | Excavation squad dispatched 2037 | -10/Mines | Discovered new exit (range 8) 2639 | -10/Mines | Discovered new exit (range 13) 2811 | -10/Mines | Discovered new exit (range 12) 2857 | -10/Mines | Entered Materials 2857 | -9/Materials | Accompanied by 1 ally 2857 | -9/Materials | Evolved 2 slots: Propulsion x1, Weapon x1 2862 | -9/Materials | Led the pair of lost Derelicts to an unsafe place 3268 | -9/Materials | Build established: Tank 4040 | -9/Materials | Discovered new exit (range 15) 4285 | -9/Materials | Identified Exp. Sensor Array 4408 | -9/Materials | Discovered new exit (range 11) 5100 | -9/Materials | Discovered new exit (range 4) 5189 | -9/Materials | Discovered new exit (range 11) 5310 | -9/Materials | Entered Mines 5311 | -9/Mines | Assembled infested the area 5316 | -9/Mines | Assisted by a Guerilla fighting off Assembled 5336 | -9/Mines | Discovered new exit (range 12) 5395 | -9/Mines | Discovered new exit (range 14) 5405 | -9/Mines | Learned Materials terminal intel 5583 | -9/Mines | Met a Derelict shopkeep closing up shop 5839 | -9/Mines | Destroyed 8 combat bots 5872 | -9/Mines | Found a hidden stash of uninstalled traps 6164 | -9/Mines | Deemed a non-threat by the Exiles lab entrance 6164 | -9/Mines | Discovered new exit (range 5) 6170 | -9/Mines | Entered Exiles 6210 | -9/Exiles | Met 8R-AWN 6238 | -9/Exiles | Met EX-HEX 6279 | -9/Exiles | Met EX-BIN 6311 | -9/Exiles | Aligned with FarCom system 6313 | -9/Exiles | Given EX-Vault access code 6350 | -9/Exiles | Opened EX-Vault 6391 | -9/Exiles | Warned to stay clear of 0b10 Research branches 6436 | -9/Exiles | Met EX-DEC 6968 | -9/Exiles | Found Field Lobotomy Kit 6974 | -9/Exiles | Found Latent Energy Streamer 7520 | -9/Exiles | Attacked by the Exiles 7646 | -9/Exiles | Found Prototype Ballistic Gun 7649 | -9/Exiles | Found Prototype Ballistic Gun 7650 | -9/Exiles | Identified 8R-AWN's Boregun (x2) 8105 | -9/Exiles | Learned location of Zion (-7) 8331 | -9/Exiles | Destroyed 8R-AWN 8352 | -9/Exiles | Found Prototype Device 8352 | -9/Exiles | Identified AS-neutralizer No. 17b 8557 | -9/Exiles | Found Prototype Processor 8854 | -9/Exiles | Found Skeleton Box 9354 | -9/Exiles | Discovered new exit (range 14) 9381 | -9/Exiles | Stole three prototypes: Skeleton Box, Latent Energy Streamer, Field Lobotomy Kit 9381 | -9/Exiles | Entered Mines 9709 | -8/Mines | Discovered new exit (range 10) 9910 | -8/Mines | Core integrity fell below 50% 10031 | -8/Mines | Discovered new exit (range 9) 10378 | -8/Mines | Entered Materials 10378 | -8/Materials | Evolved 2 slots: Utility x2 10379 | -8/Materials | Loaded intel: 12 terminal locations 10576 | -8/Materials | Identified Exp. Targeting Computer 10862 | -8/Materials | Build established: Scavenger-Gunner 10866 | -8/Materials | Discovered new exit (range 10) 11188 | -8/Materials | Repaired Adv. Myomer Leg 11450 | -8/Materials | Identified exit to Factory 11541 | -8/Materials | Entered Factory 11541 | -7/Factory | Evolved 2 slots: Utility x2 11779 | -7/Factory | Repaired Autogun 11920 | -7/Factory | Crushed by falling debris 12287 | -7/Factory | Discovered new exit (range 11) 12371 | -7/Factory | Identified exit to Storage 12371 | -7/Factory | Identified exit to Lower Caves 12883 | -7/Factory | Garrison activated, responded to threat 12991 | -7/Factory | Entered Lower Caves 13168 | -7/Lower Caves | Ambushed by research squad 13446 | -7/Lower Caves | Encountered a Warlord checkpoint 13469 | -7/Lower Caves | Identified exit to Lower Caves 13926 | -7/Lower Caves | Spotted B-75 Beast 13951 | -7/Lower Caves | Assimilated B-75 Beast with FLK Orb 14144 | -7/Lower Caves | Entered another Lower Caves area 14144 | -7/Lower Caves | Accompanied by 1 ally 14941 | -7/Lower Caves | Attracted the attention of an 0b10 outpost 15001 | -7/Lower Caves | Found DCF Scrap (11 items) 15105 | -7/Lower Caves | Spotted 0I-KDU(f) 15107 | -7/Lower Caves | Field Lobotomy Kit stolen by Master Thief 15108 | -7/Lower Caves | Encountered a Master Thief 15108 | -7/Lower Caves | Spotted 1L-9DB(f) 15109 | -7/Lower Caves | Encountered a Master Thief 15111 | -7/Lower Caves | Latent Energy Streamer stolen by Master Thief 15168 | -7/Lower Caves | Discovered new exit (range 9) 15692 | -7/Lower Caves | Entered Zion 15692 | -7/Zion | Accompanied by 1 ally 15744 | -7/Zion | Given A8's code to call for help 15824 | -7/Zion | Given the Hacking Drone Bay 15824 | -7/Zion | Found Prototype Device 15893 | -7/Zion | Discovered new exit (range 16) 15918 | -7/Zion | Visited the Megawrench Repair Shop 15918 | -7/Zion | Megawrench repaired 12 parts 16121 | -7/Zion | Learned location of Warlord (-5) 16286 | -7/Zion | Learned location of 1 exit from Lower Caves 16484 | -7/Zion | Met Imprinter 16546 | -7/Zion | Found CR-A16's Pointy Stick 16700 | -7/Zion | Learned location of Storage (-7) 16751 | -7/Zion | Learned Factory security intel 17066 | -7/Zion | Build established: Scavenger-Mutant 17392 | -7/Zion | Identified Hacking Drone Bay 17785 | -7/Zion | Build established: Scavenger-Gunner 17824 | -7/Zion | Remotely autohacked Sealed Blast Doors 17835 | -7/Zion | Remotely autohacked Sealed Blast Doors 17835 | -7/Zion | Remotely autohacked Sealed Blast Doors 17835 | -7/Zion | Remotely autohacked Sealed Blast Doors 18181 | -7/Zion | Gained Derelict followers 18223 | -7/Zion | Enhanced Grunt warped into view, answering call for help 18227 | -7/Zion | Enhanced Grunt warped into view, answering call for help 18275 | -7/Zion | Discovered new exit (range 3) 18275 | -7/Zion | Saw the warning signs outside the Deep Caves entrance 18427 | -7/Zion | Entered Deep Caves 18427 | -7/Deep Caves | Accompanied by 7 allies 18806 | -7/Deep Caves | Z-Facility disabled 18814 | -7/Deep Caves | Attacked by Z-Imprinter 18820 | -7/Deep Caves | Allies destroyed Z-Imprinter 18997 | -7/Deep Caves | Core integrity fell below 50% 19015 | -7/Deep Caves | Found Prototype Protection 19015 | -7/Deep Caves | Identified Zio. Weapon Casing 19019 | -7/Deep Caves | Found Zio. Weapon Casing 19702 | -7/Deep Caves | Found Surveybot 24 Scanner 19705 | -7/Deep Caves | Found Surveybot 24 Chip 19707 | -7/Deep Caves | Discovered new exit (range 19) 20011 | -7/Deep Caves | Build established: Scavenger-Skirmisher 20273 | -7/Deep Caves | Found Zio. Weapon Casing 20575 | -7/Deep Caves | Build established: Scavenger-Gunner 20866 | -7/Deep Caves | Destroyed AG-94206 20942 | -7/Deep Caves | Exposed GOLEM chamber 20943 | -7/Deep Caves | Triggered Deep Caves wall 20965 | -7/Deep Caves | Found Unknown Device 20970 | -7/Deep Caves | Spotted AS-53332 21000 | -7/Deep Caves | Spotted AG-26533 21267 | -7/Deep Caves | Found Zio. Weapon Casing 21349 | -7/Deep Caves | Build established: Scavenger-Tank 21425 | -7/Deep Caves | Entered Proximity Caves 21428 | -6/Proximity Caves | Spotter reported a threat 21750 | -6/Proximity Caves | Attracted the attention of an 0b10 checkpoint 21965 | -6/Proximity Caves | Spotted B-75 Beast 21991 | -6/Proximity Caves | Destroyed B-75 Beast 22192 | -6/Proximity Caves | Discovered new exit (range 6) 22209 | -6/Proximity Caves | Entered Factory 22209 | -6/Factory | Evolved 2 slots: Utility x2 22516 | -6/Factory | Build established: Scavenger-Gunner 23187 | -6/Factory | Cargo convoy interrupted 23282 | -6/Factory | Repaired Hvy. Rocket Launcher 23600 | -6/Factory | Identified exit to Factory 23603 | -6/Factory | Discovered new exit (range 7) 23733 | -6/Factory | Allied Derelicts emerged from ambush trap array 23879 | -6/Factory | Lost 3 allies 24055 | -6/Factory | Lost 4 parts (1u3w) 24386 | -6/Factory | Lost 3 parts (2u1w) 25218 | -6/Factory | Found Prototype Launcher 25218 | -6/Factory | Identified Scatter Rocket Array 25239 | -6/Factory | Entered another Factory area 25239 | -5/Factory | Evolved 2 slots: Utility x2 25557 | -5/Factory | Sucked down chute 25557 | -5/Factory | Entered Waste 25585 | -5/Waste | Spotted C-40 Crusher 25588 | -5/Waste | Spotted C-40 Crusher 25599 | -5/Waste | Spotted C-40 Crusher 25601 | -5/Waste | Spotted C-40 Crusher 25603 | -5/Waste | Spotted C-40 Crusher 25607 | -5/Waste | Crushed by Compactor (1 part destroyed, 1 dropped) 25609 | -5/Waste | Crushed by Compactor (1 part destroyed, 1 dropped) 25610 | -5/Waste | Crushed by Compactor (1 part destroyed, 2 dropped) 25612 | -5/Waste | Crushed by Compactor (1 part destroyed, 1 dropped) 25615 | -5/Waste | Crushed by Compactor (1 part destroyed, 1 dropped) 25615 | -5/Waste | Crushed by Compactor (1 part destroyed, 1 dropped) 25631 | -5/Waste | Spotted C-40 Crusher 25642 | -5/Waste | Discovered new exit (range 11) 25646 | -5/Waste | Lost 7 parts (2n4u1w) 25651 | -5/Waste | Entered Factory 25651 | -5/Factory | Identified GOLEM Unit 25900 | -5/Factory | Build established: Mutant 26244 | -5/Factory | Build established: Golem 26926 | -5/Factory | Discovered new exit (range 6) 27220 | -5/Factory | Discovered new exit (range 15) 27995 | -5/Factory | Identified exit to Upper Caves 28111 | -5/Factory | Entered Upper Caves 28353 | -5/Upper Caves | Attracted the attention of an 0b10 checkpoint 28987 | -5/Upper Caves | Entered a destroyed Warlord outpost 29078 | -5/Upper Caves | Identified exit to Upper Caves 29525 | -5/Upper Caves | Entered another Upper Caves area 29526 | -5/Upper Caves | Encountered a Warlord checkpoint 29995 | -5/Upper Caves | Learned location of Armory (-4) 30355 | -5/Upper Caves | Spotted B-75 Beast 30360 | -5/Upper Caves | Destroyed B-75 Beast 30478 | -5/Upper Caves | Identified exit to Warlord 31140 | -5/Upper Caves | Attracted the attention of an 0b10 outpost 31186 | -5/Upper Caves | Discovered new exit (range 5) 33877 | -5/Upper Caves | Found Alien Artifact 33893 | -5/Upper Caves | Identified Core Expander 33893 | -5/Upper Caves | Installed Core Expander, added new Utility slot 34221 | -5/Upper Caves | Entered Warlord 34283 | -5/Warlord | System corruption cleaned by Quarantine Array 34500 | -5/Warlord | Met Warlord 34521 | -5/Warlord | Warlord's base attacked by MAIN.C 34760 | -5/Warlord | Found Prototype Energy Cannon 34760 | -5/Warlord | Identified Vortex Cannon 34769 | -5/Warlord | Found Prototype Energy Gun 34770 | -5/Warlord | Identified Vortex Shotgun 34871 | -5/Warlord | Warlord forces counterattacked 35132 | -5/Warlord | Spotted Executioner 35136 | -5/Warlord | Spotted Executioner 35196 | -5/Warlord | Warlord base infiltrated, sounded retreat 35269 | -5/Warlord | Lost 3 allies 35353 | -5/Warlord | Spotted Striker 35353 | -5/Warlord | Spotted Striker 35354 | -5/Warlord | Spotted Striker 35357 | -5/Warlord | Spotted Executioner 35368 | -5/Warlord | Discovered new exit (range 16) 35397 | -5/Warlord | Entered Proximity Caves 35415 | -4/Proximity Caves | Lost 3 allies 35600 | -4/Proximity Caves | Learned location of Testing (-2) 35750 | -4/Proximity Caves | Spotted B-86 Titan 35768 | -4/Proximity Caves | Crushed by falling debris 35799 | -4/Proximity Caves | Lost 3 parts (1p2u) 35832 | -4/Proximity Caves | Destroyed B-86 Titan 36403 | -4/Proximity Caves | Attracted the attention of an 0b10 checkpoint 36461 | -4/Proximity Caves | Discovered new exit (range 12) 36744 | -4/Proximity Caves | Entered Factory 36744 | -4/Factory | Evolved 2 slots: Power x1, Utility x1 36937 | -4/Factory | Identified exit to DSF 36979 | -4/Factory | Crushed by falling debris 37489 | -4/Factory | Lost 3 parts (3u) 38244 | -4/Factory | First assault squad dispatched 38956 | -4/Factory | Discovered new exit (range 4) 38960 | -4/Factory | Entered Upper Caves 39543 | -4/Upper Caves | Encountered a Warlord checkpoint 39582 | -4/Upper Caves | Discovered new exit (range 6) 39699 | -4/Upper Caves | Learned 4 Research zone layouts 39818 | -4/Upper Caves | Entered another Upper Caves area 39833 | -4/Upper Caves | Found Alien Artifact 39853 | -4/Upper Caves | Attracted the attention of an 0b10 checkpoint 39954 | -4/Upper Caves | Attacked by a delusional Derelict stockpiling parts 40069 | -4/Upper Caves | Attracted the attention of an 0b10 outpost 40151 | -4/Upper Caves | Lost 3 parts (2u1w) 40976 | -4/Upper Caves | Identified exit to Research 40986 | -4/Upper Caves | Spotted W8-4W4(f) 40987 | -4/Upper Caves | Encountered a Master Thief 40987 | -4/Upper Caves | Alien Artifact stolen by Master Thief 40987 | -4/Upper Caves | Destroyed W8-4W4(f) 40988 | -4/Upper Caves | Spotted KA-NXJ(f) 40989 | -4/Upper Caves | Encountered a Master Thief 40991 | -4/Upper Caves | Destroyed KA-NXJ(f) 40996 | -4/Upper Caves | Spotted 3A-7BW(f) 40997 | -4/Upper Caves | Encountered a Master Thief 41003 | -4/Upper Caves | Allies destroyed 3A-7BW(f) 41051 | -4/Upper Caves | Discovered new exit (range 3) 41065 | -4/Upper Caves | Entered Zhirov 41065 | -4/Zhirov | Accompanied by 2 allies 41065 | -4/Zhirov | Discovered new exit (range 3) 41091 | -4/Zhirov | Met Zhirov 41137 | -4/Zhirov | Learned location of Quarantine (-3) 41137 | -4/Zhirov | Learned location of Command (-1) 41145 | -4/Zhirov | Zhirov requested help retrieving the SGEMP Prototype 41168 | -4/Zhirov | Found Alien Artifact 41168 | -4/Zhirov | Identified Integrated Dissipator 41168 | -4/Zhirov | Installed Integrated Dissipator, increased core heat dissipation (+20) 41233 | -4/Zhirov | Found Alien Artifact 41290 | -4/Zhirov | Entered Proximity Caves 41290 | -3/Proximity Caves | Accompanied by 2 allies 41306 | -3/Proximity Caves | Build established: Tank 41558 | -3/Proximity Caves | Attracted the attention of an 0b10 outpost 41856 | -3/Proximity Caves | Discovered exit to Research (range 15) 41882 | -3/Proximity Caves | Entered Research 41882 | -3/Research | Evolved 2 slots: Utility x2 42289 | -3/Research | Discovered new exit (range 12) 42289 | -3/Research | Spotted B-90 Cyclops 42446 | -3/Research | Lost 3 parts (3u) 42469 | -3/Research | Identified Transdimensional Reconstructor 42469 | -3/Research | Warped through subspace 42562 | -3/Research | Identified Dimensional Node Initializer 42562 | -3/Research | Initialized slip node 42609 | -3/Research | Released all parts (9) 42614 | -3/Research | Lost 7 parts (1p3u3w) 42683 | -3/Research | Core integrity fell below 50% 42702 | -3/Research | Core integrity fell below 20% 42716 | -3/Research | Destroyed by S-43 Plague with Heavy Machine Gun Last Messages --------------- 42609_ Released Asb. Alloy Leg. 42609_ Released Asb. Nanovents. 42609_ Released Asb. Combat Suite. 42609_ Released Asb. Biocell Array. 42609_ Released Adv. Target Analyzer. 42609_ R-10 Processor collects Imp. Heavy Armor Plating. 42610_ Acquired 4 matter. 42610_ P-80 Master resets R-10 Processor, system corruption cleaned. 42613_ ALERT: Potential suspicious activity detected, Programmers report to Research Zone 4P. 42616_ System corrupted: Heat flow error (+156). 42621_ Acquired Hvy. Gauss Cannon. 42623_ Slug penetrates Wall. 42642_ System corrupted: Heat flow error (+105). 42645_ Acquired 18 matter. 42694_ S-43 Plague destroyed. 42698_ S-43 Plague knocked back. 42700_ Dropped Hvy. Gauss Cannon. 42709_ Slammed into A-15 Conveyor. [Achievement: Overachiever] Map ----- +----------------------------------------------------+ | # ## #??????????# """"" #????????????????? | | # !## #??????????# """"" #????????????????? | | ####### #??????????# """""= ###??????????????? | | #????## #??????????# * = # #??????????????? | | #????## ##?????????# / ! ###??????????????? | | ###### ###############/##### #??????????? | | ! #??????????? | | #??????????? | | ! ! #??????????? | | ####### ############## "" #??????????? | | ??????## ########??????# """ = #??????????? | | ???????# # #??????# "T #??????????? | | ######## #! #??????+ """ #??????????? | | !!! + % /!% #??????# "" #??????????? | | !! # %%"= % #??????# ? #??????????? | | !! #% !# ] % #??????# ?? ??#??????????? | | ######?# %########??????# ?? ?????###+##### | | ?????##"#+#####??????????# ???? | | ?????# #??????????# ???? | | ?????# #??????????? ????? | | ?????# "" !#???????????^ ??????????###+##### | | ?????# """ #???????????^ ???????????????????? | | ?????# S" ########????^??????????????????????? | | ?????# """ # ######+#####????????????????? | | ?????# """ # ! ## #????????????????? | | ?????# ? # ## @ #????????????????? | | ?????# ???? #? ?# """" =#????????????????? | | ?????#############/####s """" #????????????????? | | ? ss """"" #????????????????? | | ??????######### ####### """" #????????????????? | | ####?? ?????# #?????# ??????????????????? | | # ????# #?????# #????????????????? | | # """????# #?????###########????????????????? | | ?# """ ?### ###########??????????????????????? | | ?# """ ?+ # #??????????????????????? | | ??# # # ??????????????????????? | | ??# # # = ???????????????????????? | | ???# + # ????????????????????????? | | ???# # # ???????????????????????? | | #####+####### # """ "??????????????????????? | | # """ T"?????????????????????? | | %= ] # """ ""#????????????????????? | | % + [ ""#????????????????????? | | # ""#????????????????????? | | #### # """ ""#????????????????????? | | ??# # """ "#????????????????????? | | / # """ ###????????????????????? | | ######+####### #??????????????????????? | | #???? ?????# * ?#??????????????????????? | | #???? ?????# ????????????????????????? | +----------------------------------------------------+ Best States ------------- Heat Dissipation 126 Energy Generation 45 Energy Capacity 2315 Matter Stores 300 Matter Capacity 300 Sight Range 16 Robot Scan Range 20 Terrain Scan Range 24 Terrain Scan Density 2010 Additional Mass Support 20 Armor Coverage 625 Resistance: KI 15 Resistance: TH 15 Resistance: EX 15 Resistance: EM 25 Resistance: I 15 Resistance: S 15 Resistance: P 15 Propulsion Shielding 90 Weapon Shielding 100 Point Defense Rating 240 Weapon Cycling 25 Phase Shifting 8 Evasion (%) 78 Targeting Accuracy 28 Target Analysis 8 Core Analysis 8 Recoil Reduction 3 Salvage Targeting 1 Authchip Count 1 Item Schematics ----------------- Lightning Gun | -7/Zion | Archive Adv. Heat Sink | -7/Zion | Archive Shock Absorption System | -7/Zion | Archive Arm. Leg | -7/Zion | Archive Proton Cannon | -7/Zion | Archive Xenon Bombardment Thruster | -7/Zion | Archive Imp. Shock Absorption System | -7/Zion | Archive Gatling Laser | -7/Zion | Archive Imp. Cooling System | -7/Zion | Archive Lgt. Fission Core | -7/Zion | Archive Great Axe | -7/Zion | Archive Point Defense System | -7/Zion | Archive Hrd. Heavy Armor Plating | -7/Zion | Archive Imp. Thermal Generator | -7/Zion | Archive Assault Drone Bay | -4/Zhirov | Free Exp. Optical Array | -4/Zhirov | Free Exp. Heat Sink | -4/Zhirov | Free Imp. Arc Thrower | -4/Zhirov | Free Robot Schematics ------------------ A-02 Transporter | -7/Zion | Archive R-06 Scavenger | -7/Zion | Archive O-24 Administrator | -7/Zion | Archive D-83 Annihilator | -7/Zion | Archive Fabricated ------------ Nothing Repaired ---------- Adv. Myomer Leg | 68% | -8/Materials Autogun | 27% | -7/Factory Hvy. Rocket Launcher | 3% | -6/Factory Alien Tech Used ----------------- Core Expander Integrated Dissipator Transdimensional Reconstructor Dimensional Node Initializer Achievements -------------- Are We The Baddies? Exterminator Overachiever That's One Door That Should Stay Closed Challenges ------------ None Game ------ Seed MomentumNuclearDrivehammer Manual? 0 Play Time 05:08:40 Cumulative 111.6 hours Start 2025.07.25 @ 09:11:18 End 2025.07.27 @ 17:03:59 Sessions 11 Manual Loads 0 Difficulty Rogue Special Mode None Game No. 169 Rogue 169 Adventurer 0 Explorer 0 Win Type - Total 1 Types 1/0/0/0/0/0/0/0/0/0 Lore% 67 Gallery% 57 Achievement% 50 Wizard Run 0 Options --------- Layout 0 ASCII 0 Keyboard 0 Movement Mouse Keybinds 0 Fullscreen 1 Font 16/SmallcapsGlow Map View 75x55 Zoom Use 0% Tactical HUD 1 Map Filters NONE Filters NONE Steam 1 RUN: 6443c37a-e7ce-44c5-b955-8770f0627f77